fUST/lending_fUST_20250601
["ID","MTS","AMOUNT","RATE_DAILY","PERIOD"]
[363464929,1748731841913,-430.0,0.00018356,2]
[363464931,1748731841923,-1265.36490964,0.00018383,2]
[363464933,1748731841932,-1265.36490964,0.00018624,2]
[363464935,1748731841942,-339.258186,0.0001863,2]
[363464937,1748731841952,-339.258186,0.0001863,2]
[363464939,1748731841962,-430.0,0.0001863,2]
[363464941,1748731841972,-1376.62,0.0001863,2]
[363464943,1748731841982,-1359.28,0.0001863,2]
[363464945,1748731841991,-430.0,0.0001863,2]
[363464947,1748731842001,-430.0,0.0001863,2]
[363464949,1748731842011,-1856.94,0.0001863,2]
[363464951,1748731842020,-634.74,0.0001863,2]
[363464953,1748731842029,-434.33,0.0001863,2]
[363464955,1748731842039,-430.0,0.0001863,2]
[363464957,1748731842048,-666.58,0.0001863,2]
[363464959,1748731842058,-430.0,0.0001863,2]
[363464961,1748731842067,-457.35,0.0001863,2]
[363464963,1748731842077,-740.72,0.0001863,2]
[363464965,1748731842087,-469.94,0.0001863,2]
[363464967,1748731842097,-903.79,0.0001863,2]
[363464969,1748731842106,-488.68,0.0001863,2]
[363464971,1748731842116,-585.11,0.0001863,2]
[363464973,1748731842125,-430.0,0.0001863,2]
[363464975,1748731842135,-580.16,0.0001863,2]
[363464977,1748731842146,-1165.58,0.0001863,2]
[363464979,1748731842155,-430.0,0.0001863,2]
[363464981,1748731842165,-430.0,0.0001863,2]
[363464983,1748731842174,-430.0,0.0001863,2]
[363464985,1748731842184,-1265.36490964,0.00018866,2]
[363464987,1748731842196,-5668.63,0.00018893,2]
[363464989,1748731842205,-836.14399098,0.000189,2]
[363464991,1748731842216,-430.0,0.00018904,2]
[363464993,1748731842226,-1376.62,0.00018904,2]
[363464995,1748731842236,-1359.28,0.00018904,2]
[363464998,1748731842247,-430.0,0.00018904,2]
[363465000,1748731842257,-430.0,0.00018904,2]
[363465001,1748731842266,-1856.94,0.00018904,2]
[363465004,1748731842276,-634.74,0.00018904,2]
[363465005,1748731842285,-434.33,0.00018904,2]
[363465007,1748731842296,-430.0,0.00018904,2]
[363465010,1748731842306,-666.58,0.00018904,2]
[363465011,1748731842317,-430.0,0.00018904,2]
[363465013,1748731842327,-457.35,0.00018904,2]
[363465015,1748731842337,-740.72,0.00018904,2]
[363465018,1748731842347,-469.94,0.00018904,2]
[363465019,1748731842358,-903.79,0.00018904,2]
[363465021,1748731842367,-488.68,0.00018904,2]
[363465024,1748731842377,-585.11,0.00018904,2]
[363465026,1748731842386,-430.0,0.00018904,2]
[363465028,1748731842396,-580.16,0.00018904,2]
[363465030,1748731842406,-1165.58,0.00018904,2]
[363465032,1748731842415,-430.0,0.00018904,2]
[363465034,1748731842425,-155.07,0.00018904,2]
[363465036,1748731842434,-345.61,0.00018904,2]
[363465038,1748731842444,-300.0,0.00018917,2]
[363465040,1748731842454,-300.0,0.00018917,2]
[363465042,1748731842463,-300.0,0.00018917,2]
[363465044,1748731842476,-300.0,0.00018917,2]
[363465046,1748731842486,-300.0,0.00018917,2]
[363465048,1748731842495,-207.4,0.00018917,2]
[363465050,1748731842505,-300.0,0.00018917,2]
[363465052,1748731842515,-300.0,0.00018917,2]
[363465053,1748731842524,-300.0,0.00018917,2]
[363465055,1748731842533,-300.0,0.00018917,2]
[363465057,1748731842543,-300.0,0.00018917,2]
[363465059,1748731842553,-300.0,0.00018917,2]
[363465060,1748731842562,-300.0,0.00018917,2]
[363465061,1748731842571,-300.0,0.00018917,2]
[363465062,1748731842580,-300.0,0.00018917,2]
[363465063,1748731842590,-300.0,0.00018917,2]
[363465064,1748731842599,-1265.36490964,0.00019107,2]
[363465065,1748731842609,-339.258186,0.00019178,2]
[363465066,1748731842619,-339.258186,0.00019178,2]
[363465067,1748731842629,-430.0,0.00019178,2]
[363465068,1748731842638,-430.0,0.00019178,2]
[363465069,1748731842648,-430.0,0.00019178,2]
[363465070,1748731842657,-430.0,0.00019178,2]
[363465071,1748731842667,-430.0,0.00019178,2]
[363465072,1748731842676,-430.0,0.00019178,2]
[363465073,1748731842685,-430.0,0.00019178,2]
[363465074,1748731842695,-430.0,0.00019178,2]
[363465075,1748731842704,-430.0,0.00019178,2]
[363465076,1748731842714,-430.0,0.00019178,2]
[363465077,1748731842723,-430.0,0.00019178,2]
[363465078,1748731842736,-430.0,0.00019178,2]
[363465079,1748731842749,-500.0,0.00019178,2]
[363465080,1748731842763,-412.08391311,0.00019178,2]
[363465081,1748731842776,-500.0,0.00019178,2]
[363465082,1748731842788,-500.0,0.00019178,2]
[363465083,1748731842799,-500.0,0.00019178,2]
[363465084,1748731842811,-500.0,0.00019178,2]
[363465085,1748731842824,-1376.62,0.00019178,2]
[363465086,1748731842836,-1359.28,0.00019178,2]
[363465088,1748731842850,-500.0,0.00019178,2]
[363465090,1748731842862,-430.0,0.00019178,2]
[363465093,1748731842877,-500.0,0.00019178,2]
[363465095,1748731842889,-343.22365616,0.00019178,2]
[363465097,1748731842902,-250.0,0.00019178,2]
[363465100,1748731842916,-430.0,0.00019178,2]
[363465102,1748731842930,-1856.94,0.00019178,2]
[363465104,1748731842942,-634.74,0.00019178,2]
[363465107,1748731842953,-434.33,0.00019178,2]
[363465109,1748731842967,-430.0,0.00019178,2]
[363465111,1748731842979,-666.58,0.00019178,2]
[363465114,1748731842991,-430.0,0.00019178,2]
[363465116,1748731843004,-457.35,0.00019178,2]
[363465118,1748731843017,-740.72,0.00019178,2]
[363465120,1748731843028,-469.94,0.00019178,2]
[363465123,1748731843040,-903.79,0.00019178,2]
[363465125,1748731843050,-488.68,0.00019178,2]
[363465127,1748731843062,-585.11,0.00019178,2]
[363465129,1748731843075,-430.0,0.00019178,2]
[363465131,1748731843086,-580.16,0.00019178,2]
[363465134,1748731843098,-1165.58,0.00019178,2]
[363465138,1748731843110,-430.0,0.00019178,2]
[363465141,1748731843122,-264.715847,0.00019178,2]
[363465145,1748731843135,-173.365041,0.00019178,2]
[363465149,1748731843147,-30191.14888411,0.00019329,2]
[363465151,1748731843160,-1265.36490964,0.00019348,2]
[363465153,1748731843172,-270.0,0.00019452,2]
[363465156,1748731843185,-430.0,0.00019452,2]
[363465158,1748731843198,-1376.62,0.00019452,2]
[363465160,1748731843208,-1359.28,0.00019452,2]
[363465162,1748731843218,-430.0,0.00019452,2]
[363465164,1748731843229,-430.0,0.00019452,2]
[363465167,1748731843240,-1856.94,0.00019452,2]
[363465169,1748731843252,-634.74,0.00019452,2]
[363465171,1748731843265,-434.33,0.00019452,2]
[363465174,1748731843278,-430.0,0.00019452,2]
[363465176,1748731843290,-666.58,0.00019452,2]
[363465178,1748731843301,-430.0,0.00019452,2]
[363465180,1748731843312,-457.35,0.00019452,2]
[363465182,1748731843323,-740.72,0.00019452,2]
[363465185,1748731843334,-469.94,0.00019452,2]
[363465187,1748731843347,-903.79,0.00019452,2]
[363465189,1748731843358,-488.68,0.00019452,2]
[363465191,1748731843369,-585.11,0.00019452,2]
[363465193,1748731843379,-430.0,0.00019452,2]
[363465195,1748731843391,-580.16,0.00019452,2]
[363465198,1748731843402,-1165.58,0.00019452,2]
[363465200,1748731843412,-430.0,0.00019452,2]
[363465202,1748731843423,-1265.36490964,0.0001959,2]
[363465204,1748731843434,-339.258186,0.00019719,2]
[363465206,1748731843446,-339.258186,0.00019719,2]
[363465209,1748731843457,-178.7,0.00019721,2]
[363465211,1748731843471,-385.588,0.00019721,2]
[363465213,1748731843482,-430.0,0.00019726,2]
[363465215,1748731843494,-1376.62,0.00019726,2]
[363465217,1748731843505,-1359.28,0.00019726,2]
[363465220,1748731843516,-430.0,0.00019726,2]
[363465222,1748731843527,-505.16,0.00019726,2]
[363465224,1748731843538,-1856.94,0.00019726,2]
[363465226,1748731843549,-634.74,0.00019726,2]
[363465228,1748731843560,-434.33,0.00019726,2]
[363465230,1748731843571,-498.77,0.00019726,2]
[363465232,1748731843582,-666.58,0.00019726,2]
[363465235,1748731843592,-430.0,0.00019726,2]
[363465237,1748731843603,-457.35,0.00019726,2]
[363465239,1748731843614,-740.72,0.00019726,2]
[363465241,1748731843627,-469.94,0.00019726,2]
[363465243,1748731843638,-903.79,0.00019726,2]
[363465246,1748731843649,-488.68,0.00019726,2]
[363465248,1748731843660,-585.11,0.00019726,2]
[363465250,1748731843671,-430.0,0.00019726,2]
[363465252,1748731843682,-580.16,0.00019726,2]
[363465255,1748731843694,-1165.58,0.00019726,2]
[363465258,1748731843705,-430.0,0.00019726,2]
[363465260,1748731843716,-8502.95,0.00019752,2]
[363465262,1748731843728,-1265.36490964,0.00019831,2]
[363465264,1748731843739,-700.0,0.00019964,2]
[363465266,1748731843749,-153.0,0.00019973,2]
[363465268,1748731843761,-156.217942,0.00019973,2]
[363465271,1748731843772,-430.0,0.0002,2]
[363465273,1748731843784,-1376.62,0.0002,2]
[363465275,1748731843795,-1359.28,0.0002,2]
[363465277,1748731843806,-430.0,0.0002,2]
[363465279,1748731843817,-1856.94,0.0002,2]
[363465282,1748731843828,-634.74,0.0002,2]
[363465284,1748731843840,-434.33,0.0002,2]
[363465286,1748731843850,-666.58,0.0002,2]
[363465288,1748731843861,-430.0,0.0002,2]
[363465290,1748731843873,-457.35,0.0002,2]
[363465292,1748731843884,-740.72,0.0002,2]
[363465294,1748731843895,-469.94,0.0002,2]
[363465297,1748731843906,-903.79,0.0002,2]
[363465299,1748731843916,-488.68,0.0002,2]
[363465301,1748731843927,-585.11,0.0002,2]
[363465303,1748731843938,-430.0,0.0002,2]
[363465305,1748731843950,-580.16,0.0002,2]
[363465307,1748731843961,-1165.58,0.0002,2]
[363465310,1748731843973,-430.0,0.0002,2]
[363465312,1748731843984,-1265.36490964,0.00020072,2]
[363465314,1748731843995,-532.898162,0.00020187,2]
[363465316,1748731844006,-339.258186,0.00020273,2]
[363465318,1748731844017,-339.258186,0.00020273,2]
[363465320,1748731844028,-1376.62,0.00020273,2]
[363465322,1748731844039,-1359.28,0.00020273,2]
[363465325,1748731844050,-430.0,0.00020273,2]
[363465327,1748731844062,-1856.94,0.00020273,2]
[363465329,1748731844072,-634.74,0.00020273,2]
[363465331,1748731844084,-434.33,0.00020273,2]
[363465333,1748731844094,-666.58,0.00020273,2]
[363465336,1748731844106,-430.0,0.00020273,2]
[363465338,1748731844117,-457.35,0.00020273,2]
[363465340,1748731844129,-740.72,0.00020273,2]
[363465342,1748731844140,-469.94,0.00020273,2]
[363465344,1748731844150,-903.79,0.00020273,2]
[363465346,1748731844160,-488.68,0.00020273,2]
[363465348,1748731844170,-585.11,0.00020273,2]
[363465350,1748731844179,-430.0,0.00020273,2]
[363465352,1748731844189,-580.16,0.00020273,2]
[363465354,1748731844199,-1165.58,0.00020273,2]
[363465356,1748731844209,-430.0,0.00020273,2]
[363465358,1748731844219,-240.0,0.00020274,3]
[363465360,1748731844228,-215.0738,0.00020286,2]
[363465379,1748731844397,-1265.36490964,0.00020314,3]
[363465382,1748731844415,-1376.62,0.00020547,2]
[363465385,1748731844429,-1359.28,0.00020547,2]
[363465387,1748731844440,-430.0,0.00020547,2]
[363465389,1748731844451,-1856.94,0.00020547,2]
[363465391,1748731844462,-634.74,0.00020547,2]
[363465393,1748731844475,-434.33,0.00020547,2]
[363465395,1748731844485,-666.58,0.00020547,2]
[363465397,1748731844494,-430.0,0.00020547,2]
[363465399,1748731844503,-457.35,0.00020547,2]
[363465401,1748731844513,-740.72,0.00020547,2]
[363465403,1748731844522,-469.94,0.00020547,2]
[363465405,1748731844532,-903.79,0.00020547,2]
[363465407,1748731844541,-488.68,0.00020547,2]
[363465409,1748731844550,-585.11,0.00020547,2]
[363465411,1748731844560,-430.0,0.00020547,2]
[363465413,1748731844569,-580.16,0.00020547,2]
[363465415,1748731844579,-1165.58,0.00020547,2]
[363465417,1748731844589,-430.0,0.00020547,2]
[363465419,1748731844598,-1265.36490964,0.00020555,3]
[363465421,1748731844607,-814.85,0.000206,2]
[363465423,1748731844617,-8725.96,0.000206,2]
[363465425,1748731844626,-11337.26,0.00020611,2]
[363465427,1748731844636,-153.0,0.00020795,2]
[363465429,1748731844645,-153.0,0.00020795,2]
[363465431,1748731844655,-153.0,0.00020795,2]
[363465433,1748731844664,-316.9162468,0.00020795,2]
[363465435,1748731844675,-153.0,0.00020795,2]
[363465437,1748731844685,-153.0,0.00020795,2]
[363465439,1748731844694,-153.0,0.00020795,2]
[363465441,1748731844703,-153.0,0.00020795,2]
[363465443,1748731844714,-153.0,0.00020795,2]
[363465445,1748731844724,-153.0,0.00020795,2]
[363465447,1748731844734,-1265.36490964,0.00020797,4]
[363465449,1748731844744,-339.258186,0.00020821,2]
[363465451,1748731844753,-339.258187,0.00020821,2]
[363465453,1748731844764,-1376.62,0.00020821,2]
[363465455,1748731844773,-1359.28,0.00020821,2]
[363465457,1748731844783,-430.0,0.00020821,2]
[363465459,1748731844792,-1856.94,0.00020821,2]
[363465461,1748731844802,-634.74,0.00020821,2]
[363465463,1748731844812,-434.33,0.00020821,2]
[363465465,1748731844822,-666.58,0.00020821,2]
[363465467,1748731844832,-430.0,0.00020821,2]
[363465469,1748731844842,-457.35,0.00020821,2]
[363465471,1748731844851,-740.72,0.00020821,2]
[363465473,1748731844860,-469.94,0.00020821,2]
[363465475,1748731844870,-903.79,0.00020821,2]
[363465477,1748731844879,-488.68,0.00020821,2]
[363465479,1748731844889,-585.11,0.00020821,2]
[363465481,1748731844899,-430.0,0.00020821,2]
[363465483,1748731844908,-580.16,0.00020821,2]
[363465485,1748731844918,-1165.58,0.00020821,2]
[363465487,1748731844928,-430.0,0.00020821,2]
[363465489,1748731844938,-962.0,0.00020951,2]
[363465491,1748731844947,-2227.0,0.00020951,2]
[363465493,1748731844957,-708.0,0.00020951,2]
[363465496,1748731844967,-1265.36490964,0.00021038,4]
[363465497,1748731844976,-700.0,0.0002106,2]
[363465500,1748731844986,-600.0,0.00021073,2]
[363465502,1748731844996,-371.4387525,0.00021073,2]
[363465503,1748731845005,-500.0,0.00021073,2]
[363465505,1748731845015,-326247.58519,0.00021079,2]
[363465507,1748731845024,-500.0,0.0002108,2]
[363465509,1748731845034,-500.0,0.0002108,2]
[363465511,1748731845043,-500.0,0.0002108,2]
[363465514,1748731845054,-500.0,0.0002108,2]
[363465516,1748731845063,-500.0,0.0002108,2]
[363465518,1748731845072,-500.0,0.0002108,2]
[363465520,1748731845081,-500.0,0.0002108,2]
[363465522,1748731845091,-1376.62,0.00021095,2]
[363465523,1748731845101,-1359.28,0.00021095,2]
[363465525,1748731845111,-430.0,0.00021095,2]
[363465527,1748731845120,-1856.94,0.00021095,2]
[363465529,1748731845129,-634.74,0.00021095,2]
[363465532,1748731845139,-434.33,0.00021095,2]
[363465534,1748731845149,-666.58,0.00021095,2]
[363465536,1748731845158,-430.0,0.00021095,2]
[363465538,1748731845167,-457.35,0.00021095,2]
[363465540,1748731845177,-740.72,0.00021095,2]
[363465542,1748731845187,-469.94,0.00021095,2]
[363465543,1748731845196,-903.79,0.00021095,2]
[363465544,1748731845206,-488.68,0.00021095,2]
[363465545,1748731845215,-585.11,0.00021095,2]
[363465546,1748731845225,-430.0,0.00021095,2]
[363465547,1748731845234,-580.16,0.00021095,2]
[363465548,1748731845244,-1165.58,0.00021095,2]
[363465549,1748731845253,-430.0,0.00021095,2]
[363465551,1748731845263,-901.376153,0.00021148,3]
[363465553,1748731845273,-501.0382725,0.00021268,2]
[363465556,1748731845283,-1265.36490964,0.00021279,5]
[363465558,1748731845293,-903.15213563,0.00021329,2]
[363465560,1748731845303,-1376.62,0.00021369,2]
[363465562,1748731845312,-1359.28,0.00021369,2]
[363465564,1748731845322,-430.0,0.00021369,2]
[363465566,1748731845332,-1856.94,0.00021369,2]
[363465568,1748731845342,-634.74,0.00021369,2]
[363465570,1748731845352,-434.33,0.00021369,2]
[363465572,1748731845361,-666.58,0.00021369,2]
[363465574,1748731845371,-430.0,0.00021369,2]
[363465576,1748731845380,-457.35,0.00021369,2]
[363465578,1748731845390,-740.72,0.00021369,2]
[363465580,1748731845400,-469.94,0.00021369,2]
[363465582,1748731845409,-903.79,0.00021369,2]
[363465584,1748731845418,-488.68,0.00021369,2]
[363465586,1748731845428,-585.11,0.00021369,2]
[363465588,1748731845438,-430.0,0.00021369,2]
[363465590,1748731845447,-580.16,0.00021369,2]
[363465592,1748731845456,-1165.58,0.00021369,2]
[363465594,1748731845467,-430.0,0.00021369,2]
[363465596,1748731845476,-171.40581184,0.00021397,2]
[363465598,1748731845486,-9794.10665477,0.0002147,2]
[363465613,1748731845603,-1197.68977541,0.0002147,2]
[363465643,1748731845874,-430.0,0.00016438,2]
[363465645,1748731845884,-930.11,0.0001726,2]
[363465647,1748731845893,-930.11,0.00017534,2]
[363465649,1748731845903,-930.11,0.00017808,2]
[363465651,1748731845912,-1165.48,0.00017808,2]
[363465653,1748731845921,-930.11,0.00018082,2]
[363465655,1748731845931,-1165.48,0.00018082,2]
[363465657,1748731845941,-930.11,0.00018356,2]
[363465659,1748731845950,-1165.48,0.00018356,2]
[363465661,1748731845960,-930.11,0.0001863,2]
[363465663,1748731845970,-901.73772187,0.0001863,2]
[363465665,1748731845982,-263.74227813,0.0001863,2]
[363465667,1748731845992,-930.11,0.00018904,2]
[363465669,1748731846001,-1165.48,0.00018904,2]
[363465671,1748731846011,-930.11,0.00019178,2]
[363465673,1748731846021,-1165.48,0.00019178,2]
[363465675,1748731846030,-930.11,0.00019452,2]
[363465677,1748731846040,-1165.48,0.00019452,2]
[363465679,1748731846050,-930.11,0.00019726,2]
[363465681,1748731846060,-1165.48,0.00019726,2]
[363465683,1748731846069,-930.11,0.0002,2]
[363465685,1748731846078,-253.78772187,0.0002,2]
[363465688,1748731846095,-911.69227813,0.0002,2]
[363465690,1748731846104,-930.11,0.00020273,2]
[363465692,1748731846114,-1165.48,0.00020273,2]
[363465694,1748731846124,-930.11,0.00020547,2]
[363465696,1748731846134,-930.11,0.00020821,2]
[363465698,1748731846143,-151.0,0.00021094,2]
[363465700,1748731846152,-930.11,0.00021095,2]
[363465702,1748731846163,-930.11,0.00021369,2]
[363465704,1748731846172,-3179.78356982,0.0002147,2]
[363465706,1748731846182,-1265.36490964,0.00021521,5]
[363465708,1748731846193,-1200.0,0.00021621,2]
[363465710,1748731846203,-1000.0,0.00021621,2]
[363465712,1748731846213,-256.150746,0.00021643,2]
[363465714,1748731846223,-1376.62,0.00021643,2]
[363465716,1748731846233,-1359.28,0.00021643,2]
[363465718,1748731846244,-430.0,0.00021643,2]
[363465720,1748731846254,-1856.94,0.00021643,2]
[363465722,1748731846264,-634.74,0.00021643,2]
[363465724,1748731846274,-434.33,0.00021643,2]
[363465726,1748731846283,-666.58,0.00021643,2]
[363465728,1748731846294,-430.0,0.00021643,2]
[363465730,1748731846304,-457.35,0.00021643,2]
[363465732,1748731846314,-740.72,0.00021643,2]
[363465734,1748731846323,-469.94,0.00021643,2]
[363465736,1748731846333,-903.79,0.00021643,2]
[363465738,1748731846343,-488.68,0.00021643,2]
[363465741,1748731846352,-585.11,0.00021643,2]
[363465742,1748731846362,-430.0,0.00021643,2]
[363465745,1748731846371,-580.16,0.00021643,2]
[363465747,1748731846381,-1165.58,0.00021643,2]
[363465749,1748731846390,-430.0,0.00021643,2]
[363465751,1748731846400,-508.580323,0.00021643,2]
[363465753,1748731846409,-508.580323,0.00021643,2]
[363465754,1748731846418,-930.11,0.00021643,2]
[363465757,1748731846428,-223.0315306,0.00021655,2]
[363465759,1748731846438,-1265.36490964,0.00021762,5]
[363465761,1748731846448,-151.0,0.000218,4]
[363465763,1748731846457,-212.77096907,0.000219,3]
[363465765,1748731846467,-200.0,0.000219,2]
[363465767,1748731846481,-689.07898576,0.000219,2]
[363465780,1748731846599,-430.0,0.00016438,2]
[363465782,1748731846609,-430.0,0.00016712,2]
[363465784,1748731846619,-430.0,0.00016986,2]
[363465786,1748731846628,-430.0,0.0001726,2]
[363465788,1748731846638,-430.0,0.00019178,2]
[363465790,1748731846647,-430.0,0.00019178,2]
[363465793,1748731846657,-430.0,0.00019178,2]
[363465795,1748731846666,-246.69,0.00019178,2]
[363465797,1748731846676,-1165.48,0.00020547,2]
[363465799,1748731846685,-1165.48,0.00020821,2]
[363465801,1748731846694,-1165.48,0.00021095,2]
[363465803,1748731846705,-1165.48,0.00021369,2]
[363465805,1748731846714,-1165.48,0.00021643,2]
[363465807,1748731846723,-579.75101424,0.000219,2]
[363465809,1748731846733,-814.85,0.000219,2]
[363465811,1748731846742,-8725.96,0.000219,2]
[363465813,1748731846752,-250.0,0.000219,30]
[363465815,1748731846762,-200.0,0.00021917,2]
[363465817,1748731846771,-500.0,0.00021917,2]
[363465819,1748731846781,-1376.62,0.00021917,2]
[363465821,1748731846790,-1359.28,0.00021917,2]
[363465823,1748731846799,-430.0,0.00021917,2]
[363465825,1748731846809,-1856.94,0.00021917,2]
[363465827,1748731846819,-634.74,0.00021917,2]
[363465829,1748731846830,-434.33,0.00021917,2]
[363465831,1748731846839,-666.58,0.00021917,2]
[363465833,1748731846849,-430.0,0.00021917,2]
[363465835,1748731846858,-457.35,0.00021917,2]
[363465837,1748731846868,-740.72,0.00021917,2]
[363465839,1748731846878,-469.94,0.00021917,2]
[363465841,1748731846887,-903.79,0.00021917,2]
[363465843,1748731846897,-488.68,0.00021917,2]
[363465845,1748731846906,-585.11,0.00021917,2]
[363465847,1748731846916,-363.7,0.00021917,2]
[363465849,1748731846925,-580.16,0.00021917,2]
[363465851,1748731846935,-1165.58,0.00021917,2]
[363465853,1748731846945,-163.71453853,0.00021917,2]
[363465855,1748731846955,-930.11,0.00021917,2]
[363465857,1748731846964,-1165.48,0.00021917,2]
[363465859,1748731846974,-151.0,0.00021918,7]
[363465861,1748731846984,-260.805568,0.00021918,7]
[363465863,1748731846994,-260.805568,0.00021918,7]
[363465865,1748731847004,-500.0,0.00021918,2]
[363465867,1748731847014,-500.0,0.00021918,2]
[363465869,1748731847023,-500.0,0.00021918,2]
[363465871,1748731847033,-463.85325381,0.00021918,2]
[363465874,1748731847043,-500.0,0.00021918,2]
[363465876,1748731847052,-500.0,0.00021918,2]
[363465877,1748731847061,-500.0,0.00021918,2]
[363465879,1748731847071,-500.0,0.00021918,2]
[363465882,1748731847082,-500.0,0.00021918,2]
[363465884,1748731847093,-500.0,0.00021918,2]
[363465886,1748731847104,-500.0,0.00021918,2]
[363465888,1748731847114,-500.0,0.00021918,2]
[363465890,1748731847123,-500.0,0.00021918,2]
[363465892,1748731847133,-500.0,0.00021918,2]
[363465894,1748731847142,-500.0,0.00021918,2]
[363465896,1748731847152,-500.0,0.00021918,2]
[363465898,1748731847162,-500.0,0.00021918,2]
[363465900,1748731847172,-500.0,0.00021918,2]
[363465902,1748731847182,-500.0,0.00021918,2]
[363465904,1748731847192,-500.0,0.00021918,2]
[363465906,1748731847202,-500.0,0.00021918,2]
[363465908,1748731847212,-500.0,0.00021918,2]
[363465910,1748731847222,-500.0,0.00021918,2]
[363465912,1748731847231,-500.0,0.00021918,2]
[363465914,1748731847242,-500.0,0.00021918,2]
[363465916,1748731847252,-500.0,0.00021918,2]
[363465919,1748731847263,-500.0,0.00021918,2]
[363465921,1748731847272,-500.0,0.00021918,2]
[363465923,1748731847282,-500.0,0.00021918,2]
[363465925,1748731847293,-500.0,0.00021918,2]
[363465927,1748731847302,-500.0,0.00021918,2]
[363465929,1748731847312,-500.0,0.00021918,2]
[363465931,1748731847322,-500.0,0.00021918,2]
[363465933,1748731847332,-500.0,0.00021918,2]
[363465935,1748731847342,-500.0,0.00021918,2]
[363465937,1748731847352,-500.0,0.00021918,2]
[363465939,1748731847362,-180.43272657,0.00021918,2]
[363465955,1748731847502,-500.0,0.00021918,2]
[363465957,1748731847512,-500.0,0.00021918,2]
[363465959,1748731847521,-500.0,0.00021918,2]
[363465961,1748731847530,-500.0,0.00021918,2]
[363465963,1748731847540,-500.0,0.00021918,2]
[363465965,1748731847550,-500.0,0.00021918,2]
[363465967,1748731847560,-500.0,0.00021918,2]
[363465970,1748731847570,-500.0,0.00021918,2]
[363465972,1748731847580,-500.0,0.00021918,2]
[363465974,1748731847590,-500.0,0.00021918,2]
[363465976,1748731847600,-500.0,0.00021918,2]
[363465978,1748731847611,-500.0,0.00021918,2]
[363465980,1748731847620,-500.0,0.00021918,2]
[363465982,1748731847630,-500.0,0.00021918,2]
[363465984,1748731847639,-500.0,0.00021918,2]
[363465986,1748731847649,-500.0,0.00021918,2]
[363465988,1748731847659,-500.0,0.00021918,2]
[363465990,1748731847669,-500.0,0.00021918,2]
[363465992,1748731847679,-500.0,0.00021918,2]
[363465994,1748731847689,-500.0,0.00021918,2]
[363465996,1748731847699,-500.0,0.00021918,2]
[363465998,1748731847709,-500.0,0.00021918,2]
[363466000,1748731847719,-500.0,0.00021918,2]
[363466002,1748731847729,-423.51976244,0.00021918,2]
[363466004,1748731847740,-500.0,0.00021918,2]
[363466006,1748731847750,-500.0,0.00021918,2]
[363466008,1748731847759,-500.0,0.00021918,2]
[363466011,1748731847770,-500.0,0.00021918,2]
[363466013,1748731847780,-500.0,0.00021918,2]
[363466015,1748731847790,-500.0,0.00021918,2]
[363466017,1748731847800,-500.0,0.00021918,2]